{"text_format":"3","workbook":"xlsx","n_sheets":2,"sheets":["list","data"],"read":"whole","date_system":"1900"}

{"sheet":"list","index":0,"n_rows":58,"n_cols":14,"rows_kept":58}
["№","Фамлия","Имя","Отчество","Пол","Класс","Класс участия","Балл","Макс. Балл","Статус","Призер МЭ прошлого года","Учитель","Место работы учителя","Направление, вид практики  по технологии"]
[1,3,4,5,6,9,10,11,12,13,14,15,16,17]
[1,"Чурин","Дмитрий","Сергеевич","м",7,7,24,30,"победитель","нет","Вахапов Рустам Нуруллович","Средняя школа №15"]
[2,"Тимербаева","Арина","Альбертовна","ж",7,7,14,30,"участник","нет","Вахапов Рустам Нуруллович",{"$f":"$M$3","v":"Средняя школа №15"}]
[3,"Мутыгуллин","Малик","Алмазович","м",7,7,14,30,"участник","нет","Вахапов Рустам Нуруллович","Средняя школа №15"]
[4,"Сафина","Эльмира","Рафильевна","ж",7,7,14,30,"участник","нет","Вахапов Рустам Нуруллович","Средняя школа №15"]
[5,"Цыганов","Роман","Алексеевич","м",7,7,10,30,"участник","нет","Вахапов Рустам Нуруллович","Средняя школа №15"]
[6,"Услугина","Полина","Игоревна","ж",7,7,10,30,"участник","нет","Вахапов Рустам Нуруллович","Средняя школа №15"]
[7,"Коробова","Елизавета","Сергеевна","ж",7,7,10,30,"участник","нет","Вахапов Рустам Нуруллович","Средняя школа №15"]
[8,"Гатиятуллин","Артур","Русланович","м",7,7,10,30,"участник","нет","Вахапов Рустам Нуруллович","Средняя школа №15"]
[9,"Гусева","Вероника","Олеговна","ж",7,7,8,30,"участник","нет","Вахапов Рустам Нуруллович","Средняя школа №15"]
[10,"Муртазин","Реваль","Азатович","м",7,7,6,30,"участник","нет","Вахапов Рустам Нуруллович","Средняя школа №15"]
[11,"Загрутдинова","Самира","Фаилевна","ж",7,7,6,30,"участник","нет","Вахапов Рустам Нуруллович","Средняя школа №15"]
[12,"Тафинцева","Виктория","Сергеевна","ж",7,7,4,30,"участник","нет","Вахапов Рустам Нуруллович","Средняя школа №15"]
[13,"Салахов","Артур","Рашитович","м",7,7,4,30,"участник","нет","Вахапов Рустам Нуруллович","Средняя школа №15"]
[14,"Гарипова","Сабина","Рустемовна","ж",7,7,4,30,"участник","нет","Вахапов Рустам Нуруллович","Средняя школа №15"]
[15,"Шайхутдинова","Диляра","Ильназовна","ж",7,7,4,30,"участник","нет","Вахапов Рустам Нуруллович","Средняя школа №15"]
[16,"Казаков","Алик","Юрьевич","м",7,7,2,30,"участник","нет","Вахапов Рустам Нуруллович","Средняя школа №15"]
[17,"Хасаншина","Диана","Альбертовна","ж",7,7,0,30,"участник","нет","Вахапов Рустам Нуруллович","Средняя школа №15"]
[18,"Алексеева","Евгения","Алексеевна","ж",9,9,9,30,"участник","нет","Вахапов Рустам Нуруллович","Средняя школа №15"]
[19,"Кашапова","Алия","Рустамовна","ж",9,9,6,30,"участник","нет","Вахапов Рустам Нуруллович","Средняя школа №15"]
[20,"Талтаев","Рустем","Айдарович","м",9,9,6,30,"участник","нет","Вахапов Рустам Нуруллович","Средняя школа №15"]
[21,"Еркина","Татьяна","Андреевна","ж",9,9,5,30,"участник","нет","Фатхуллина Э.Р.","МБОУ\"СОШ №15\"НМР РТ"]
[22,"Отрешко","Артем","Сергеевич","м",9,9,4,30,"участник","нет","Вахапов Рустам Нуруллович","Средняя школа №15"]
[23,"Шаймуратова","Зарина","Ильдусовна","ж",9,9,3,30,"участник","нет","Вахапов Рустам Нуруллович","Средняя школа №15"]
[24,"Волкова","Дина","Вячеславовна","ж",9,9,3,30,"участник","нет","Вахапов Рустам Нуруллович","Средняя школа №15"]
[25,"Файзуллина","Лилия","Ильнуровна","ж",9,9,3,30,"участник","нет","Фатхуллина Э.Р.","МБОУ\"СОШ №15\"НМР РТ"]
[26,"Цыганов","Дмитрий","Алексеевич","м",9,9,3,30,"участник","нет","Вахапов Рустам Нуруллович","Средняя школа №15"]
[27,"Комлева","Яна","Денисовна","ж",9,9,1,30,"участник","нет","Фатхуллина Э.Р.","МБОУ\"СОШ №15\"НМР РТ"]
[28,"Гатина","Самира","Ренатовна","ж",9,9,1,30,"участник","нет","Фатхуллина Э.Р.","МБОУ\"СОШ №15\"НМР РТ"]
[29,"Трифонова","Камилла","Денисовна","ж",9,9,0,30,"участник","нет","Вахапов Рустам Нуруллович","Средняя школа №15"]
[30,"Максудов","Мансур","Искандарович","м",9,9,0,30,"участник","нет","Вахапов Рустам Нуруллович","Средняя школа №15"]
[31,"Аглямзянова","Дамина","Раифовна","ж",10,10,9,30,"участник","нет","Вахапов Рустам Нуруллович","Средняя школа №15"]
[32,"Даутова","Назиля","Ильдусовна","ж",10,10,9,30,"участник","нет","Вахапов Рустам Нуруллович","Средняя школа №15"]
[33,"Мутыгуллин","Дамир","Ильдарович","м",10,10,9,30,"участник","нет","Вахапов Рустам Нуруллович","Средняя школа №15"]
[34,"Рогова","Александра","Андреевна","ж",10,10,9,30,"участник","нет","Вахапов Рустам Нуруллович","Средняя школа №15"]
[35,"Валиуллин","Эмиль","Рамилевич","м",10,10,7,30,"участник","нет","Вахапов Рустам Нуруллович","Средняя школа №15"]
[36,"Гараева","Дина","Рафаэлевна","ж",10,10,7,30,"участник","нет","Вахапов Рустам Нуруллович","Средняя школа №15"]
[37,"Кондрашина","Яна","Вячеславовна","ж",10,10,7,30,"участник","нет","Вахапов Рустам Нуруллович","Средняя школа №15"]
[38,"Львов","Кирилл","Эдуардович","м",10,10,7,30,"участник","нет","Вахапов Рустам Нуруллович","Средняя школа №15"]
[39,"Збинская","Екатерина","Евгеньевна","ж",10,10,5,30,"участник","нет","Вахапов Рустам Нуруллович","Средняя школа №15"]
[40,"Романова","Евгения","Олеговна","ж",10,10,5,30,"участник","нет","Вахапов Рустам Нуруллович","Средняя школа №15"]
[41,"Фархутдинов","Салават","Нургалиевич","м",10,10,5,30,"участник","нет","Вахапов Рустам Нуруллович","Средняя школа №15"]
[42,"Шарипов","Данил","Наилевич","м",10,10,3,30,"участник","нет","Вахапов Рустам Нуруллович","Средняя школа №15"]
[43,"Латипова","Камилла","Алмазовна","ж",10,10,0,30,"участник","нет","Вахапов Рустам Нуруллович","Средняя школа №15"]
[44,"Пляшев","Дмитрий","Александрович","м",8,8,10,30,"участник","нет","Фатхуллина Э.Р.","МБОУ\"СОШ №15\"НМР РТ"]
[45,"Кучимова","Маржона","Амировна","ж",8,8,9,30,"участник","нет","Фатхуллина Э.Р.","МБОУ\"СОШ №15\"НМР РТ"]
[46,"Бикмуллин","Ислам","Марселевич"," м",8,8,4,30,"участник","      нет","Фатхуллина Э.Р.","МБОУ\"СОШ №15\"НМР РТ"]
[47,"Антропова","Яна","Олеговна","ж",8,8,3,30,"участник","нет","Фатхуллина Э.Р.","МБОУ\"СОШ №15\"НМР РТ"]
[48,"Марусич","Дана","Витальевна","ж",8,8,3,30,"участник","нет","Фатхуллина Э.Р.","МБОУ\"СОШ №15\"НМР РТ"]
[49,"Хайдарова","Диляра","Данисовна","ж",8,8,2,30,"участник","нет","Фатхуллина Э.Р.","МБОУ\"СОШ №15\"НМР РТ"]
[50,"Кулаков ","Аркадий","Владиславович","м",8,8,1,30,"участник","нет","Фатхуллина Э.Р.","МБОУ\"СОШ №15\"НМР РТ"]
[51,"Хакова","Арина","Руслановна","ж",8,8,1,30,"участник","нет","Фатхуллина Э.Р.","МБОУ\"СОШ №15\"НМР РТ"]
[52,"Сорвин","Артем","Сергеевич","м",8,8,1,30,"участник","нет","Фатхуллина Э.Р.","МБОУ\"СОШ №15\"НМР РТ"]
[53,"Внуков","Егор","Анатольевич","м",8,8,1,30,"участник","нет","Фатхуллина Э.Р.","МБОУ\"СОШ №15\"НМР РТ"]
[54,"Курикова","Милена","Артемовна","ж",8,8,0,30,"участник","нет","Фатхуллина Э.Р.","МБОУ\"СОШ №15\"НМР РТ"]
[55,"Шарипова","Диана","Наилевна","ж",8,8,0,30,"участник","нет","Фатхуллина Э.Р.","МБОУ\"СОШ №15\"НМР РТ"]
[56,"Ловская ","Есения","Евгеньевна","ж",8,8,0,30,"участник","нет","Фатхуллина Э.Р.","МБОУ\"СОШ №15\"НМР РТ"]

{"sheet":"data","index":1,"n_rows":25,"n_cols":3,"rows_kept":25,"hidden":true}
[]
["Техника, технология и техническое творчество .  Ручная обработка древесины"]
["Техника, технология и техническое творчество .  Ручная обработка металла"]
["Техника, технология и техническое творчество .  Механическая обработка древесины"]
["Техника, технология и техническое творчество .  Механическая обработка металла"]
["Техника, технология и техническое творчество .  Электротехника"]
["Техника, технология и техническое творчество .  Робототехника"]
["Техника, технология и техническое творчество .  3d - моделирование и печать"]
["Техника, технология и техническое творчество .  Обработка материалов на лазерно-гравировальной машине"]
["Техника, технология и техническое творчество .  Промышленный дизайн"]
["Культура дома, дизайн и технологии .  Обработка швейного изделия или узла + моделирование швейных изделий"]
["Культура дома, дизайн и технологии .  Обработка швейного изделия или узла + моделирование швейных изделий с использованием графических редакторов"]
["Культура дома, дизайн и технологии .  Обработка швейного изделия или узла на швейно-вышивальном оборудовании + моделирование швейных изделий"]
["Культура дома, дизайн и технологии .  Обработка швейного изделия или узла на швейно-вышивальном оборудовании + моделирование швейных изделий с использованием графических редакторов"]
["Культура дома, дизайн и технологии .  Робототехника"]
["Культура дома, дизайн и технологии .  3d - моделирование и печать"]
["Культура дома, дизайн и технологии .  Обработка материалов на лазерно-гравировальной машине"]
["Культура дома, дизайн и технологии .  Промышленный дизайн"]
["Роботехника .  "]
["Информационная безопасность ."]
[]
[]
["участник"]
["призер",null,"да"]
["победитель"]